Workbook

Sheet 目標
B1: =TODAY() -> 2017-05-09 | C1: 目標 | J1: 運動 | K1: 飲食
B2: 開始日期 | C2: 飲食與運動日誌
B3: =開始日期+121 -> 2017-09-07 | C3: 飲食分析
B5: 結束日期
B6: 100.00
B7: 原始體重
B8: 80.00 | C8: 運動分析
B10: 目標體重
B11: =原始體重-B8 -> 20
B12: 減重目標
B13: =結束日期-開始日期 -> 121
B14: 減重天數
B15: =減重目標/B13 -> 0.17
B16: 每日減少重量

Sheet 飲食
B1: 飲食 | G1: 目標 | H1: 運動
B2: =副標題 -> 飲食與運動日誌
B3: 日期 | C3: 時間 | D3: 描述 | E3: 卡路里 | F3: 碳水化合物 | G3: 蛋白質 | H3: 脂肪 | I3: 附註
B4: =開始日期 -> 2017-05-09 | C4: 07:00:00 | D4: 咖啡 | E4: 1 | F4: 0 | G4: 0 | H4: 0 | I4: 晨間咖啡
B5: =開始日期 -> 2017-05-09 | C5: 08:00:00 | D5: 貝果 | E5: 10 | F5: 10 | G5: 2 | H5: 10 | I5: 早餐輕食
B6: =開始日期 -> 2017-05-09 | C6: 12:00:00 | D6: 午餐 | E6: 283 | F6: 46 | G6: 18 | H6: 4 | I6: 火雞肉三明治
B7: =開始日期 -> 2017-05-09 | C7: 19:00:00 | D7: 晚餐 | E7: 500 | F7: 42 | G7: 35 | H7: 25 | I7: 薯球燉鍋
B8: =開始日期+1 -> 2017-05-10 | C8: 07:00:00 | D8: 咖啡 | E8: 1 | F8: 0 | G8: 0 | H8: 0 | I8: 晨間咖啡
B9: =開始日期+1 -> 2017-05-10 | C9: 08:00:00 | D9: 吐司 | E9: 10 | F9: 10 | G9: 2 | H9: 10 | I9: 早餐輕食
B10: =開始日期+1 -> 2017-05-10 | C10: 12:00:00 | D10: 午餐 | E10: 189 | F10: 26 | G10: 3 | H10: 8 | I10: 三明治
B11: =開始日期+1 -> 2017-05-10 | C11: 19:00:00 | D11: 晚餐 | E11: 477 | F11: 62 | G11: 14 | H11: 21 | I11: 晚餐
B12: =開始日期+2 -> 2017-05-11 | C12: 07:00:00 | D12: 咖啡 | E12: 1 | F12: 0 | G12: 0 | H12: 0 | I12: 晨間咖啡
B13: =開始日期+2 -> 2017-05-11 | C13: 08:00:00 | D13: 貝果 | E13: 245 | F13: 48 | G13: 10 | H13: 2 | I13: 早餐輕食
B14: =開始日期+2 -> 2017-05-11 | C14: 12:00:00 | D14: 午餐 | E14: 247 | F14: 11 | G14: 43 | H14: 5 | I14: 沙拉
B15: =開始日期+2 -> 2017-05-11 | C15: 19:00:00 | D15: 晚餐 | E15: 456 | F15: 64 | G15: 32 | H15: 22 | I15: 晚餐
B16: =開始日期+3 -> 2017-05-12 | C16: 07:00:00 | D16: 吐司 | E16: 10 | F16: 10 | G16: 2 | H16: 10 | I16: 早餐輕食
B17: =開始日期+3 -> 2017-05-12 | C17: 10:00:00 | D17: 咖啡 | E17: 135 | F17: 12 | G17: 9 | H17: 6 | I17: 拿鐵
B18: =開始日期+3 -> 2017-05-12 | C18: 12:15:00 | D18: 午餐 | E18: 184 | F18: 7 | G18: 5 | H18: 15 | I18: 沙拉
B19: =開始日期+5 -> 2017-05-14 | C19: 19:00:00 | D19: 晚餐 | E19: 477 | F19: 62 | G19: 14 | H19: 21 | I19: 晚餐

Sheet 運動
B1: 運動 | F1: 飲食 | G1: 目標
B2: =副標題 -> 飲食與運動日誌
B3: 日期 | C3: 持續時間 (分鐘) | D3: 消耗卡路里 | E3: 附註
B4: =開始日期+4 -> 2017-05-13 | C4: 30 | D4: 120 | E4: 跑步機健身
B5: =B4+1 -> 2017-05-14 | C5: 60 | D5: 180 | E5: 低強度有氧
B6: =B5+1 -> 2017-05-15 | C6: 60 | D6: 350 | E6: 高強度健身
B7: 2017-05-16 | C7: 30 | D7: 150 | E7: 跑步機健身
B8: 2017-05-17 | C8: 25 | D8: 125 | E8: 跑步
B9: 2017-05-18 | C9: 20 | D9: 285 | E9: 跑步機健身
B10: 2017-05-19 | C10: 40 | D10: 205 | E10: 跑步
B11: 2017-05-20 | C11: 30 | D11: 335 | E11: 跑步
B12: 2017-05-21 | C12: 40 | D12: 175 | E12: 跑步
B13: 2017-05-22 | C13: 45 | D13: 325 | E13: 跑步機健身
B14: 2017-05-23 | C14: 40 | D14: 270 | E14: 跑步
B15: 2017-05-24 | C15: 20 | D15: 295 | E15: 跑步機健身
B16: 2017-05-25 | C16: 45 | D16: 350 | E16: 跑步
B17: 2017-05-26 | C17: 35 | D17: 320 | E17: 跑步
B18: 2017-05-27 | C18: 40 | D18: 290 | E18: 跑步
B19: =B18+1 -> 2017-05-28 | C19: 25 | D19: 265 | E19: 跑步機健身
B20: 2017-05-29 | C20: 20 | D20: 195 | E20: 跑步

Sheet 圖表計算 (hidden)
B2: 飲食分析圖表資料
B4: 開始列 | C4: =ROW(飲食[[#Headers],[日期]])+1 -> 4 | D4: 日期 | E4: 日 | F4: 脂肪 | G4: 蛋白質 | H4: 碳水化合物 | I4: 卡路里 | J4: 數字
B5: 最後飲食項目 | C5: =MATCH(9.99E+307,飲食[日期])+飲食列開始-1 -> 19 | D5: =IFERROR(IF(INDEX(飲食[],最後飲食-飲食列開始-J5,1)<>"",INDEX(飲食[],最後飲食-飲食列開始-J5,1),""),"") -> 2017-05-09 | E5: =UPPER(TEXT(D5,"DDD")) -> TUE | F5: =IFERROR((IF(INDEX(飲食[],最後飲食-飲食列開始-J5,1)<>"",INDEX(飲食[],最後飲食-飲食列開始-J5,7),NA())),NA()) -> 3.5 | G5: =IFERROR((IF(INDEX(飲食[],最後飲食-飲食列開始-J5,1)<>"",INDEX(飲食[],最後飲食-飲食列開始-J5,6),NA())),NA()) -> 18 | H5: =IFERROR((IF(INDEX(飲食[],最後飲食-飲食列開始-J5,1)<>"",INDEX(飲食[],最後飲食-飲食列開始-J5,5),NA())),NA()) -> 46 | I5: =IFERROR((IF(INDEX(飲食[],最後飲食-飲食列開始-J5,1)<>"",INDEX(飲食[],最後飲食-飲食列開始-J5,4),NA())),NA()) -> 283 | J5: 12
D6: =IFERROR(IF(INDEX(飲食[],最後飲食-飲食列開始-J6,1)<>"",INDEX(飲食[],最後飲食-飲食列開始-J6,1),""),"") -> 2017-05-09 | E6: TUE | F6: =IFERROR((IF(INDEX(飲食[],最後飲食-飲食列開始-J6,1)<>"",INDEX(飲食[],最後飲食-飲食列開始-J6,7),NA())),NA()) -> 25 | G6: =IFERROR((IF(INDEX(飲食[],最後飲食-飲食列開始-J6,1)<>"",INDEX(飲食[],最後飲食-飲食列開始-J6,6),NA())),NA()) -> 35 | H6: =IFERROR((IF(INDEX(飲食[],最後飲食-飲食列開始-J6,1)<>"",INDEX(飲食[],最後飲食-飲食列開始-J6,5),NA())),NA()) -> 42 | I6: =IFERROR((IF(INDEX(飲食[],最後飲食-飲食列開始-J6,1)<>"",INDEX(飲食[],最後飲食-飲食列開始-J6,4),NA())),NA()) -> 500 | J6: 11
D7: =IFERROR(IF(INDEX(飲食[],最後飲食-飲食列開始-J7,1)<>"",INDEX(飲食[],最後飲食-飲食列開始-J7,1),""),"") -> 2017-05-10 | E7: WED | F7: =IFERROR((IF(INDEX(飲食[],最後飲食-飲食列開始-J7,1)<>"",INDEX(飲食[],最後飲食-飲食列開始-J7,7),NA())),NA()) -> 0 | G7: =IFERROR((IF(INDEX(飲食[],最後飲食-飲食列開始-J7,1)<>"",INDEX(飲食[],最後飲食-飲食列開始-J7,6),NA())),NA()) -> 0 | H7: =IFERROR((IF(INDEX(飲食[],最後飲食-飲食列開始-J7,1)<>"",INDEX(飲食[],最後飲食-飲食列開始-J7,5),NA())),NA()) -> 0 | I7: =IFERROR((IF(INDEX(飲食[],最後飲食-飲食列開始-J7,1)<>"",INDEX(飲食[],最後飲食-飲食列開始-J7,4),NA())),NA()) -> 1 | J7: 10
D8: =IFERROR(IF(INDEX(飲食[],最後飲食-飲食列開始-J8,1)<>"",INDEX(飲食[],最後飲食-飲食列開始-J8,1),""),"") -> 2017-05-10 | E8: WED | F8: =IFERROR((IF(INDEX(飲食[],最後飲食-飲食列開始-J8,1)<>"",INDEX(飲食[],最後飲食-飲食列開始-J8,7),NA())),NA()) -> 10 | G8: =IFERROR((IF(INDEX(飲食[],最後飲食-飲食列開始-J8,1)<>"",INDEX(飲食[],最後飲食-飲食列開始-J8,6),NA())),NA()) -> 2 | H8: =IFERROR((IF(INDEX(飲食[],最後飲食-飲食列開始-J8,1)<>"",INDEX(飲食[],最後飲食-飲食列開始-J8,5),NA())),NA()) -> 10 | I8: =IFERROR((IF(INDEX(飲食[],最後飲食-飲食列開始-J8,1)<>"",INDEX(飲食[],最後飲食-飲食列開始-J8,4),NA())),NA()) -> 10 | J8: 9
D9: =IFERROR(IF(INDEX(飲食[],最後飲食-飲食列開始-J9,1)<>"",INDEX(飲食[],最後飲食-飲食列開始-J9,1),""),"") -> 2017-05-10 | E9: WED | F9: =IFERROR((IF(INDEX(飲食[],最後飲食-飲食列開始-J9,1)<>"",INDEX(飲食[],最後飲食-飲食列開始-J9,7),NA())),NA()) -> 8 | G9: =IFERROR((IF(INDEX(飲食[],最後飲食-飲食列開始-J9,1)<>"",INDEX(飲食[],最後飲食-飲食列開始-J9,6),NA())),NA()) -> 3 | H9: =IFERROR((IF(INDEX(飲食[],最後飲食-飲食列開始-J9,1)<>"",INDEX(飲食[],最後飲食-飲食列開始-J9,5),NA())),NA()) -> 26 | I9: =IFERROR((IF(INDEX(飲食[],最後飲食-飲食列開始-J9,1)<>"",INDEX(飲食[],最後飲食-飲食列開始-J9,4),NA())),NA()) -> 189 | J9: 8
D10: =IFERROR(IF(INDEX(飲食[],最後飲食-飲食列開始-J10,1)<>"",INDEX(飲食[],最後飲食-飲食列開始-J10,1),""),"") -> 2017-05-10 | E10: WED | F10: =IFERROR((IF(INDEX(飲食[],最後飲食-飲食列開始-J10,1)<>"",INDEX(飲食[],最後飲食-飲食列開始-J10,7),NA())),NA()) -> 21 | G10: =IFERROR((IF(INDEX(飲食[],最後飲食-飲食列開始-J10,1)<>"",INDEX(飲食[],最後飲食-飲食列開始-J10,6),NA())),NA()) -> 13.5 | H10: =IFERROR((IF(INDEX(飲食[],最後飲食-飲食列開始-J10,1)<>"",INDEX(飲食[],最後飲食-飲食列開始-J10,5),NA())),NA()) -> 62 | I10: =IFERROR((IF(INDEX(飲食[],最後飲食-飲食列開始-J10,1)<>"",INDEX(飲食[],最後飲食-飲食列開始-J10,4),NA())),NA()) -> 477 | J10: 7
D11: =IFERROR(IF(INDEX(飲食[],最後飲食-飲食列開始-J11,1)<>"",INDEX(飲食[],最後飲食-飲食列開始-J11,1),""),"") -> 2017-05-11 | E11: THU | F11: =IFERROR((IF(INDEX(飲食[],最後飲食-飲食列開始-J11,1)<>"",INDEX(飲食[],最後飲食-飲食列開始-J11,7),NA())),NA()) -> 0 | G11: =IFERROR((IF(INDEX(飲食[],最後飲食-飲食列開始-J11,1)<>"",INDEX(飲食[],最後飲食-飲食列開始-J11,6),NA())),NA()) -> 0 | H11: =IFERROR((IF(INDEX(飲食[],最後飲食-飲食列開始-J11,1)<>"",INDEX(飲食[],最後飲食-飲食列開始-J11,5),NA())),NA()) -> 0 | I11: =IFERROR((IF(INDEX(飲食[],最後飲食-飲食列開始-J11,1)<>"",INDEX(飲食[],最後飲食-飲食列開始-J11,4),NA())),NA()) -> 1 | J11: 6
D12: =IFERROR(IF(INDEX(飲食[],最後飲食-飲食列開始-J12,1)<>"",INDEX(飲食[],最後飲食-飲食列開始-J12,1),""),"") -> 2017-05-11 | E12: THU | F12: =IFERROR((IF(INDEX(飲食[],最後飲食-飲食列開始-J12,1)<>"",INDEX(飲食[],最後飲食-飲食列開始-J12,7),NA())),NA()) -> 1.5 | G12: =IFERROR((IF(INDEX(飲食[],最後飲食-飲食列開始-J12,1)<>"",INDEX(飲食[],最後飲食-飲食列開始-J12,6),NA())),NA()) -> 10 | H12: =IFERROR((IF(INDEX(飲食[],最後飲食-飲食列開始-J12,1)<>"",INDEX(飲食[],最後飲食-飲食列開始-J12,5),NA())),NA()) -> 48 | I12: =IFERROR((IF(INDEX(飲食[],最後飲食-飲食列開始-J12,1)<>"",INDEX(飲食[],最後飲食-飲食列開始-J12,4),NA())),NA()) -> 245 | J12: 5
D13: =IFERROR(IF(INDEX(飲食[],最後飲食-飲食列開始-J13,1)<>"",INDEX(飲食[],最後飲食-飲食列開始-J13,1),""),"") -> 2017-05-11 | E13: THU | F13: =IFERROR((IF(INDEX(飲食[],最後飲食-飲食列開始-J13,1)<>"",INDEX(飲食[],最後飲食-飲食列開始-J13,7),NA())),NA()) -> 5 | G13: =IFERROR((IF(INDEX(飲食[],最後飲食-飲食列開始-J13,1)<>"",INDEX(飲食[],最後飲食-飲食列開始-J13,6),NA())),NA()) -> 43 | H13: =IFERROR((IF(INDEX(飲食[],最後飲食-飲食列開始-J13,1)<>"",INDEX(飲食[],最後飲食-飲食列開始-J13,5),NA())),NA()) -> 11 | I13: =IFERROR((IF(INDEX(飲食[],最後飲食-飲食列開始-J13,1)<>"",INDEX(飲食[],最後飲食-飲食列開始-J13,4),NA())),NA()) -> 247 | J13: 4
D14: =IFERROR(IF(INDEX(飲食[],最後飲食-飲食列開始-J14,1)<>"",INDEX(飲食[],最後飲食-飲食列開始-J14,1),""),"") -> 2017-05-11 | E14: THU | F14: =IFERROR((IF(INDEX(飲食[],最後飲食-飲食列開始-J14,1)<>"",INDEX(飲食[],最後飲食-飲食列開始-J14,7),NA())),NA()) -> 22 | G14: =IFERROR((IF(INDEX(飲食[],最後飲食-飲食列開始-J14,1)<>"",INDEX(飲食[],最後飲食-飲食列開始-J14,6),NA())),NA()) -> 32 | H14: =IFERROR((IF(INDEX(飲食[],最後飲食-飲食列開始-J14,1)<>"",INDEX(飲食[],最後飲食-飲食列開始-J14,5),NA())),NA()) -> 64 | I14: =IFERROR((IF(INDEX(飲食[],最後飲食-飲食列開始-J14,1)<>"",INDEX(飲食[],最後飲食-飲食列開始-J14,4),NA())),NA()) -> 456 | J14: 3
D15: =IFERROR(IF(INDEX(飲食[],最後飲食-飲食列開始-J15,1)<>"",INDEX(飲食[],最後飲食-飲食列開始-J15,1),""),"") -> 2017-05-12 | E15: FRI | F15: =IFERROR((IF(INDEX(飲食[],最後飲食-飲食列開始-J15,1)<>"",INDEX(飲食[],最後飲食-飲食列開始-J15,7),NA())),NA()) -> 10 | G15: =IFERROR((IF(INDEX(飲食[],最後飲食-飲食列開始-J15,1)<>"",INDEX(飲食[],最後飲食-飲食列開始-J15,6),NA())),NA()) -> 2 | H15: =IFERROR((IF(INDEX(飲食[],最後飲食-飲食列開始-J15,1)<>"",INDEX(飲食[],最後飲食-飲食列開始-J15,5),NA())),NA()) -> 10 | I15: =IFERROR((IF(INDEX(飲食[],最後飲食-飲食列開始-J15,1)<>"",INDEX(飲食[],最後飲食-飲食列開始-J15,4),NA())),NA()) -> 10 | J15: 2
D16: =IFERROR(IF(INDEX(飲食[],最後飲食-飲食列開始-J16,1)<>"",INDEX(飲食[],最後飲食-飲食列開始-J16,1),""),"") -> 2017-05-12 | E16: FRI | F16: =IFERROR((IF(INDEX(飲食[],最後飲食-飲食列開始-J16,1)<>"",INDEX(飲食[],最後飲食-飲食列開始-J16,7),NA())),NA()) -> 5.51 | G16: =IFERROR((IF(INDEX(飲食[],最後飲食-飲食列開始-J16,1)<>"",INDEX(飲食[],最後飲食-飲食列開始-J16,6),NA())),NA()) -> 8.81 | H16: =IFERROR((IF(INDEX(飲食[],最後飲食-飲食列開始-J16,1)<>"",INDEX(飲食[],最後飲食-飲食列開始-J16,5),NA())),NA()) -> 12.36 | I16: =IFERROR((IF(INDEX(飲食[],最後飲食-飲食列開始-J16,1)<>"",INDEX(飲食[],最後飲食-飲食列開始-J16,4),NA())),NA()) -> 135 | J16: 1
D17: =IFERROR(IF(INDEX(飲食[],最後飲食-飲食列開始-J17,1)<>"",INDEX(飲食[],最後飲食-飲食列開始-J17,1),""),"") -> 2017-05-12 | E17: FRI | F17: =IFERROR((IF(INDEX(飲食[],最後飲食-飲食列開始-J17,1)<>"",INDEX(飲食[],最後飲食-飲食列開始-J17,7),NA())),NA()) -> 15 | G17: =IFERROR((IF(INDEX(飲食[],最後飲食-飲食列開始-J17,1)<>"",INDEX(飲食[],最後飲食-飲食列開始-J17,6),NA())),NA()) -> 5.43 | H17: =IFERROR((IF(INDEX(飲食[],最後飲食-飲食列開始-J17,1)<>"",INDEX(飲食[],最後飲食-飲食列開始-J17,5),NA())),NA()) -> 7 | I17: =IFERROR((IF(INDEX(飲食[],最後飲食-飲食列開始-J17,1)<>"",INDEX(飲食[],最後飲食-飲食列開始-J17,4),NA())),NA()) -> 184 | J17: 0
D18: =IFERROR(IF(INDEX(飲食[],最後飲食-飲食列開始-J18,1)<>"",INDEX(飲食[],最後飲食-飲食列開始-J18,1),""),"") -> 2017-05-14 | E18: SUN | F18: =IFERROR((IF(INDEX(飲食[],最後飲食-飲食列開始-J18,1)<>"",INDEX(飲食[],最後飲食-飲食列開始-J18,7),NA())),NA()) -> 21 | G18: =IFERROR((IF(INDEX(飲食[],最後飲食-飲食列開始-J18,1)<>"",INDEX(飲食[],最後飲食-飲食列開始-J18,6),NA())),NA()) -> 13.5 | H18: =IFERROR((IF(INDEX(飲食[],最後飲食-飲食列開始-J18,1)<>"",INDEX(飲食[],最後飲食-飲食列開始-J18,5),NA())),NA()) -> 62 | I18: =IFERROR((IF(INDEX(飲食[],最後飲食-飲食列開始-J18,1)<>"",INDEX(飲食[],最後飲食-飲食列開始-J18,4),NA())),NA()) -> 477 | J18: -1
B20: 運動分析圖表資料
B22: 開始列 | C22: =ROW(運動[[#Headers],[日期]])+1 -> 4 | D22: 日期 | E22: 日 | F22: 持續時間 (分鐘) | G22: 消耗卡路里 | H22: 數字
B23: 最後一個運動項目 | C23: =MATCH(9.99E+307,運動[日期])+運動列開始-1 -> 20 | D23: =IFERROR(IF(INDEX(運動[],最後運動-運動列開始-H23,1)<>"",INDEX(運動[],最後運動-運動列開始-H23,1)),"") -> 2017-05-29 | E23: =UPPER(TEXT(D23,"DDD")) -> MON | F23: =IFERROR((IF(INDEX(運動[],最後運動-運動列開始-H23,1)<>"",INDEX(運動[],最後運動-運動列開始-H23,2),0)),0) -> 20 | G23: =IFERROR((IF(INDEX(運動[],最後運動-運動列開始-H23,2)<>"",INDEX(運動[],最後運動-運動列開始-H23,3),0)),0) -> 195 | H23: -1
D24: =IFERROR(IF(INDEX(運動[],最後運動-運動列開始-H24,1)<>"",INDEX(運動[],最後運動-運動列開始-H24,1)),"") -> 2017-05-28 | E24: SUN | F24: =IFERROR((IF(INDEX(運動[],最後運動-運動列開始-H24,1)<>"",INDEX(運動[],最後運動-運動列開始-H24,2),0)),0) -> 25 | G24: =IFERROR((IF(INDEX(運動[],最後運動-運動列開始-H24,2)<>"",INDEX(運動[],最後運動-運動列開始-H24,3),0)),0) -> 265 | H24: 0
D25: =IFERROR(IF(INDEX(運動[],最後運動-運動列開始-H25,1)<>"",INDEX(運動[],最後運動-運動列開始-H25,1)),"") -> 2017-05-27 | E25: SAT | F25: =IFERROR((IF(INDEX(運動[],最後運動-運動列開始-H25,1)<>"",INDEX(運動[],最後運動-運動列開始-H25,2),0)),0) -> 40 | G25: =IFERROR((IF(INDEX(運動[],最後運動-運動列開始-H25,2)<>"",INDEX(運動[],最後運動-運動列開始-H25,3),0)),0) -> 290 | H25: 1
D26: =IFERROR(IF(INDEX(運動[],最後運動-運動列開始-H26,1)<>"",INDEX(運動[],最後運動-運動列開始-H26,1)),"") -> 2017-05-26 | E26: FRI | F26: =IFERROR((IF(INDEX(運動[],最後運動-運動列開始-H26,1)<>"",INDEX(運動[],最後運動-運動列開始-H26,2),0)),0) -> 35 | G26: =IFERROR((IF(INDEX(運動[],最後運動-運動列開始-H26,2)<>"",INDEX(運動[],最後運動-運動列開始-H26,3),0)),0) -> 320 | H26: 2
D27: =IFERROR(IF(INDEX(運動[],最後運動-運動列開始-H27,1)<>"",INDEX(運動[],最後運動-運動列開始-H27,1)),"") -> 2017-05-25 | E27: THU | F27: =IFERROR((IF(INDEX(運動[],最後運動-運動列開始-H27,1)<>"",INDEX(運動[],最後運動-運動列開始-H27,2),0)),0) -> 45 | G27: =IFERROR((IF(INDEX(運動[],最後運動-運動列開始-H27,2)<>"",INDEX(運動[],最後運動-運動列開始-H27,3),0)),0) -> 350 | H27: 3
D28: =IFERROR(IF(INDEX(運動[],最後運動-運動列開始-H28,1)<>"",INDEX(運動[],最後運動-運動列開始-H28,1)),"") -> 2017-05-24 | E28: WED | F28: =IFERROR((IF(INDEX(運動[],最後運動-運動列開始-H28,1)<>"",INDEX(運動[],最後運動-運動列開始-H28,2),0)),0) -> 20 | G28: =IFERROR((IF(INDEX(運動[],最後運動-運動列開始-H28,2)<>"",INDEX(運動[],最後運動-運動列開始-H28,3),0)),0) -> 295 | H28: 4
D29: =IFERROR(IF(INDEX(運動[],最後運動-運動列開始-H29,1)<>"",INDEX(運動[],最後運動-運動列開始-H29,1)),"") -> 2017-05-23 | E29: TUE | F29: =IFERROR((IF(INDEX(運動[],最後運動-運動列開始-H29,1)<>"",INDEX(運動[],最後運動-運動列開始-H29,2),0)),0) -> 40 | G29: =IFERROR((IF(INDEX(運動[],最後運動-運動列開始-H29,2)<>"",INDEX(運動[],最後運動-運動列開始-H29,3),0)),0) -> 270 | H29: 5
D30: =IFERROR(IF(INDEX(運動[],最後運動-運動列開始-H30,1)<>"",INDEX(運動[],最後運動-運動列開始-H30,1)),"") -> 2017-05-22 | E30: MON | F30: =IFERROR((IF(INDEX(運動[],最後運動-運動列開始-H30,1)<>"",INDEX(運動[],最後運動-運動列開始-H30,2),0)),0) -> 45 | G30: =IFERROR((IF(INDEX(運動[],最後運動-運動列開始-H30,2)<>"",INDEX(運動[],最後運動-運動列開始-H30,3),0)),0) -> 325 | H30: 6
D31: =IFERROR(IF(INDEX(運動[],最後運動-運動列開始-H31,1)<>"",INDEX(運動[],最後運動-運動列開始-H31,1)),"") -> 2017-05-21 | E31: SUN | F31: =IFERROR((IF(INDEX(運動[],最後運動-運動列開始-H31,1)<>"",INDEX(運動[],最後運動-運動列開始-H31,2),0)),0) -> 40 | G31: =IFERROR((IF(INDEX(運動[],最後運動-運動列開始-H31,2)<>"",INDEX(運動[],最後運動-運動列開始-H31,3),0)),0) -> 175 | H31: 7
D32: =IFERROR(IF(INDEX(運動[],最後運動-運動列開始-H32,1)<>"",INDEX(運動[],最後運動-運動列開始-H32,1)),"") -> 2017-05-20 | E32: SAT | F32: =IFERROR((IF(INDEX(運動[],最後運動-運動列開始-H32,1)<>"",INDEX(運動[],最後運動-運動列開始-H32,2),0)),0) -> 30 | G32: =IFERROR((IF(INDEX(運動[],最後運動-運動列開始-H32,2)<>"",INDEX(運動[],最後運動-運動列開始-H32,3),0)),0) -> 335 | H32: 8
D33: =IFERROR(IF(INDEX(運動[],最後運動-運動列開始-H33,1)<>"",INDEX(運動[],最後運動-運動列開始-H33,1)),"") -> 2017-05-19 | E33: FRI | F33: =IFERROR((IF(INDEX(運動[],最後運動-運動列開始-H33,1)<>"",INDEX(運動[],最後運動-運動列開始-H33,2),0)),0) -> 40 | G33: =IFERROR((IF(INDEX(運動[],最後運動-運動列開始-H33,2)<>"",INDEX(運動[],最後運動-運動列開始-H33,3),0)),0) -> 205 | H33: 9
D34: =IFERROR(IF(INDEX(運動[],最後運動-運動列開始-H34,1)<>"",INDEX(運動[],最後運動-運動列開始-H34,1)),"") -> 2017-05-18 | E34: THU | F34: =IFERROR((IF(INDEX(運動[],最後運動-運動列開始-H34,1)<>"",INDEX(運動[],最後運動-運動列開始-H34,2),0)),0) -> 20 | G34: =IFERROR((IF(INDEX(運動[],最後運動-運動列開始-H34,2)<>"",INDEX(運動[],最後運動-運動列開始-H34,3),0)),0) -> 285 | H34: 10
D35: =IFERROR(IF(INDEX(運動[],最後運動-運動列開始-H35,1)<>"",INDEX(運動[],最後運動-運動列開始-H35,1)),"") -> 2017-05-17 | E35: WED | F35: =IFERROR((IF(INDEX(運動[],最後運動-運動列開始-H35,1)<>"",INDEX(運動[],最後運動-運動列開始-H35,2),0)),0) -> 25 | G35: =IFERROR((IF(INDEX(運動[],最後運動-運動列開始-H35,2)<>"",INDEX(運動[],最後運動-運動列開始-H35,3),0)),0) -> 125 | H35: 11
D36: =IFERROR(IF(INDEX(運動[],最後運動-運動列開始-H36,1)<>"",INDEX(運動[],最後運動-運動列開始-H36,1)),"") -> 2017-05-16 | E36: TUE | F36: =IFERROR((IF(INDEX(運動[],最後運動-運動列開始-H36,1)<>"",INDEX(運動[],最後運動-運動列開始-H36,2),0)),0) -> 30 | G36: =IFERROR((IF(INDEX(運動[],最後運動-運動列開始-H36,2)<>"",INDEX(運動[],最後運動-運動列開始-H36,3),0)),0) -> 150 | H36: 12
